[Event "15th Deltalift Open 2018"]
[Site "Halmstad"]
[Date "2018.05.10"]
[Round "3"]
[White "Bensryd, Hampus"]
[Black "Tuomainen, Felix"]
[Result "0-1"]
[ECO "B01"]
[WhiteElo "1918"]
[BlackElo "2211"]
[Annotator "NA"]
[PlyCount "110"]
[EventDate "2018.??.??"]
[EventType "swiss"]
[EventCountry "SWE"]
[SourceTitle "playchess.com"]
[Source "ChessBase"]
[SourceQuality "1"]
[TimeControl "1800+12"]

1. e4 {[%emt 0:00:00]} d5 {[%emt 0:00:05]} 2. exd5 {[%emt 0:00:01]} Qxd5 {[%emt 0:00:03]} 3. Nf3 {[%emt 0:00:05]} Nf6 {[%emt 0:00:04]} 4. d4 {[%emt 0:00:16]} Bg4 {[%emt 0:00:03] LiveBook: 436 Games} 5. Be2 {[%emt 0:00:06]} e6 {[%emt 0:00:07]} 6. c4 {[%emt 0:00:23]} Qd8 {[%emt 0:00:16]} 7. O-O {[%emt 0:00:22]} c5 {[%emt 0:00:12] B01: Scandinavian Defence} (7... c6 8. Nc3 Nbd7 9. Bg5 Be7 10. h3 Bh5 11. Re1 h6 12. Bh4 O-O 13. Qb3 Qb6 14. Na4 Qb4 15. Qxb4 Bxb4 {½-½ (24) Sredojevic,I (2428)-Juhasz,A (2375) Novi Sad 2016}) 8. Be3 {[%emt 0:01:14]} Nbd7 {[%emt 0:00:40]} 9. Nc3 {[%emt 0:01:15]} Bd6 $146 {[%emt 0:00:21]} ({Predecessor:} 9... Rc8 10. d5 Nb6 11. Bg5 Be7 12. dxe6 Bxe6 13. Ne5 O-O 14. Qc2 Nfd7 15. Bxe7 Qxe7 {0-1 (62) Marney,J (1586)-Wilkins,M (1909) Wellington 2013}) 10. d5 {[%emt 0:00:45]} e5 {[%emt 0:00:11]} (10... exd5 $11 {remains equal.} 11. cxd5 (11. Nxd5 O-O $14) 11... O-O) 11. h3 {[%emt 0:00:53]} Bxf3 {[%emt 0:00:08]} 12. Bxf3 {[%emt 0:00:17]} O-O {[%emt 0:00:03]} 13. Qc2 {[%emt 0:00:16]} Re8 {[%emt 0:00:19]} 14. Rad1 {[%emt 0:00:59]} Qe7 {[%emt 0:00:16]} 15. Nb5 {[%emt 0:01:49]} e4 16. Nxd6 {[%emt 0:00:41]} Qxd6 {[%emt 0:00:47]} 17. Be2 {[%emt 0:00:05]} Nf8 {[%emt 0:00:26]} 18. Qd2 {[%emt 0:01:49]} Ng6 {[%emt 0:00:07]} 19. Rfe1 {[%emt 0:00:40]} Nd7 {[%emt 0:00:14]} 20. Qa5 {[%emt 0:02:41]} f5 {[%emt 0:00:17]} 21. Bh5 {[%emt 0:01:12]} f4 {[%emt 0:00:36]} 22. Bxg6 {[%emt 0:00:24]} hxg6 {[%emt 0:00:15]} 23. Bc1 {[%emt 0:00:11]} g5 {[%emt 0:00:22]} 24. Qc3 {[%emt 0:00:37]} Nf6 {[%emt 0:00:39]} 25. Re2 {[%emt 0:01:01]} Kf7 {[%emt 0:00:54]} 26. Rde1 {[%emt 0:00:39]} Rh8 {[%emt 0:00:36]} 27. b3 {[%emt 0:01:37]} f3 {[%emt 0:00:15]} 28. Re3 {[%emt 0:00:02]} g4 {[%emt 0:00:11]} 29. Bb2 {[%emt 0:02:43]} gxh3 {[%emt 0:00:28]} 30. gxf3 {[%emt 0:01:55]} Rh5 {[%emt 0:03:14]} (30... exf3 {might work better.} 31. Kh1 (31. Rxf3 Rae8 $16) 31... Rae8) 31. fxe4 {[%emt 0:00:43]} Rg5+ {[%emt 0:00:06]} 32. Rg3 {[%emt 0:00:26]} h2+ {[%emt 0:00:22]} 33. Kg2 {[%emt 0:00:38]} h1=Q+ {[%emt 0:00:19]} 34. Kxh1 {[%emt 0:00:22]} Rh8+ {[%emt 0:00:20]} 35. Kg2 {[%emt 0:00:03]} Ng4 {[%emt 0:00:11]} 36. Kf3 {[%emt 0:01:54]} Rh2 {[%emt 0:00:58]} 37. Ke2 {[%emt 0:02:17]} Rxf2+ {[%emt 0:01:00]} 38. Kd1 {[%emt 0:00:06]} Rxb2 {[%emt 0:00:29]} 39. Rf3+ $18 {[%emt 0:00:14]} Kg8 {[%emt 0:00:41]} 40. Qxb2 {[%emt 0:00:04]} Ne5 {[%emt 0:00:20]} 41. Rh3 {[%emt 0:00:40]} Qd7 {[%emt 0:00:27]} 42. Reh1 {[%emt 0:00:21]} Ng4 {[%emt 0:01:07]} 43. Qd2 {[%emt 0:01:07]} Qe7 {[%emt 0:01:23]} 44. Rh8+ {[%emt 0:00:26]} Kf7 {[%emt 0:00:00]} 45. Rf1+ {[%emt 0:01:54]} Kg6 {[%emt 0:00:02]} 46. d6 {[%emt 0:00:10]} Qxe4 {[%emt 0:00:15]} 47. d7 {[%emt 0:01:11]} Qb1+ {[%emt 0:00:09]} 48. Qc1 {[%emt 0:01:09]} Qd3+ {[%emt 0:00:15]} 49. Qd2 {[%emt 0:00:07]} Qxf1+ {[%emt 0:00:47]} 50. Kc2 {[%emt 0:00:06]} Ne3+ {[%emt 0:00:38]} 51. Kb2 {[%emt 0:00:54]} Qf6+ {[%emt 0:01:09]} 52. Ka3 {[%emt 0:00:17]} Nxc4+ {[%emt 0:01:23]} 53. bxc4 {[%emt 0:00:08]} Rg3+ {[%emt 0:00:01]} 54. Ka4 {[%emt 0:00:14]} Qc6+ {[%emt 0:00:09]} 55. Ka5 {[%emt 0:00:12]} Qa6# {[%emt 0:00:02]} 0-1

[Event "15th Deltalift Open 2018"]
[Site "Halmstad"]
[Date "2018.05.10"]
[Round "4"]
[White "Lindberg, Bengt"]
[Black "Madebrink, Lars"]
[Result "1-0"]
[ECO "B66"]
[WhiteElo "2404"]
[BlackElo "2192"]
[Annotator "RC"]
[PlyCount "87"]
[EventDate "2018.??.??"]
[EventType "swiss"]
[EventCountry "SWE"]
[SourceTitle "playchess.com"]
[Source "ChessBase"]
[SourceQuality "1"]
[TimeControl "1800+12"]

1. e4 {[%emt 0:00:00]} c5 {[%emt 0:00:02]} 2. Nf3 {[%emt 0:00:00]} d6 {[%emt 0:00:01]} 3. d4 {[%emt 0:00:01]} cxd4 {[%emt 0:00:01]} 4. Nxd4 {[%emt 0:00:03]} Nf6 {[%emt 0:00:02]} 5. Nc3 {[%emt 0:00:04]} Nc6 {[%emt 0:00:02]} 6. Bg5 {[%emt 0:00:08]} e6 {[%emt 0:00:20]} 7. Qd2 {[%emt 0:00:02]} a6 {[%emt 0:00:12]} 8. O-O-O {[%emt 0:00:08]} Be7 {[%emt 0:00:13]} 9. f3 {[%emt 0:00:06]} Bd7 {[%emt 0:00:39]} 10. h4 {[%emt 0:00:31]} b5 {[%emt 0:00:47]} 11. Nxc6 {[%emt 0:00:06]} Bxc6 {[%emt 0:00:02]} 12. Ne2 {[%emt 0:00:05]} Qc7 {[%emt 0:00:33]} 13. Nd4 {[%emt 0:00:30]} Bb7 {[%emt 0:00:15]} 14. h5 {[%emt 0:00:35]} h6 {[%emt 0:00:23]} 15. Be3 {[%emt 0:00:02]} Rc8 {[%emt 0:00:18]} 16. Kb1 {[%emt 0:00:50]} d5 {[%emt 0:00:20]} 17. e5 {[%emt 0:01:02]} Nd7 {[%emt 0:00:05]} 18. f4 {[%emt 0:00:03]} Nc5 {[%emt 0:01:05]} 19. Bd3 {[%emt 0:00:05]} Ne4 {[%emt 0:00:17]} 20. Qe1 {[%emt 0:00:03]} Bc5 {[%emt 0:01:20]} 21. g4 {[%emt 0:01:35]} Qb6 {[%emt 0:00:09]} 22. f5 {[%emt 0:02:57]} b4 {[%emt 0:01:19]} 23. fxe6 {[%emt 0:02:46]} fxe6 {[%emt 0:00:03]} 24. g5 {[%emt 0:01:55]} hxg5 {[%emt 0:00:52]} 25. Bxe4 {[%emt 0:02:06]} dxe4 {[%emt 0:00:04]} 26. Qg3 {[%emt 0:00:02]} Bd5 {[%emt 0:01:57]} 27. Qxg5 {[%emt 0:00:39]} Qc7 {[%emt 0:00:36]} 28. Rhf1 {[%emt 0:00:36]} Rh6 {[%emt 0:01:50]} 29. Qg2 {[%emt 0:00:43]} Qxe5 {[%emt 0:07:22]} 30. Bxh6 {[%emt 0:00:18]} Bxd4 {[%emt 0:00:08]} 31. Qg6+ {[%emt 0:00:23]} Kd7 {[%emt 0:00:38]} 32. Rf7+ {[%emt 0:00:18]} Kc6 {[%emt 0:00:04]} 33. Bxg7 {[%emt 0:00:25]} Qh2 {[%emt 0:01:12]} 34. Bxd4 {[%emt 0:00:18]} Kb5 {[%emt 0:00:21]} 35. Rc1 {[%emt 0:01:23]} Qd2 {[%emt 0:00:40]} 36. Qg1 {[%emt 0:00:47]} a5 {[%emt 0:00:54]} 37. Qf1+ {[%emt 0:01:12]} Rc4 {[%emt 0:00:58]} 38. Bg1 {[%emt 0:01:49]} Ka4 {[%emt 0:02:43]} 39. Ra7 {[%emt 0:02:40]} Rxc2 {[%emt 0:02:47]} 40. Rxc2 {[%emt 0:02:32]} Bxa2+ {[%emt 0:00:03]} 41. Kxa2 {[%emt 0:00:15]} Qxc2 {[%emt 0:00:16]} 42. Bb6 {[%emt 0:01:41]} b3+ {[%emt 0:04:21]} 43. Ka1 {[%emt 0:00:02]} Kb4 {[%emt 0:00:27]} 44. Rxa5 {[%emt 0:00:32]} 1-0

[Event "15th Deltalift Open 2018"]
[Site "Halmstad"]
[Date "2018.05.10"]
[Round "4"]
[White "Bellon Lopez, Juan Manuel"]
[Black "Jogstad, Daniel"]
[Result "1-0"]
[ECO "A45"]
[WhiteElo "2344"]
[BlackElo "2028"]
[Annotator "NA RC"]
[PlyCount "103"]
[EventDate "2018.??.??"]
[EventType "swiss"]
[EventCountry "SWE"]
[SourceTitle "playchess.com"]
[Source "ChessBase"]
[SourceQuality "1"]
[TimeControl "1800+12"]

1. d4 {[%emt 0:00:00]} Nf6 {[%emt 0:00:01]} 2. Bg5 {[%emt 0:00:00]} Ne4 3. Bf4 c5 {[%emt 0:00:48]} 4. d5 {[%emt 0:00:00]} Qb6 {[%emt 0:03:18]} 5. Nd2 {[%emt 0:00:00]} Nxd2 {[%emt 0:00:34]} 6. Bxd2 {[%emt 0:00:00]} d6 {[%emt 0:00:12] A45: Trompowsky Attack} (6... e5 7. e4 d6 8. a4 g6 9. h4 Nd7 10. h5 Bg7 11. a5 Qd8 12. Ne2 Nf6 13. Ng3 O-O 14. Be2 {1-0 (41) Barbosa,O (2545)-Perez,M (2399) chess.com INT 2018}) 7. e4 {[%emt 0:00:49]} Nd7 {[%emt 0:01:13] LiveBook: 3 Games} 8. Bc3 {[%emt 0:00:25]} Nf6 {[%emt 0:00:18]} 9. Qd3 {[%emt 0:00:52]} g6 {[%emt 0:01:07]} 10. Bxf6 $146 {[%emt 0:00:34]} ({Predecessor:} 10. Nf3 Bg7 11. Nd2 O-O 12. Be2 Qc7 13. f4 Rb8 14. a4 {½-½ (27) Povah,N (2295)-Malisov,B (2240) Acqui Terme 2017}) 10... exf6 {[%emt 0:00:03]} 11. Qb5+ {[%emt 0:00:09]} Qxb5 {[%emt 0:00:06]} 12. Bxb5+ {[%emt 0:00:02]} Kd8 {[%emt 0:00:10]} 13. Bd3 {[%emt 0:00:04]} Bg7 {[%emt 0:00:19]} 14. O-O-O {[%emt 0:01:52]} Re8 {[%emt 0:00:03]} 15. c4 {[%emt 0:02:28]} a6 {[%emt 0:01:14]} 16. h4 {[%emt 0:01:33]} h5 {[%emt 0:03:07]} 17. f3 {[%emt 0:00:38]} Bd7 {[%emt 0:00:53]} 18. Ne2 {[%emt 0:00:06]} b5 {[%emt 0:00:11]} 19. Nc3 {[%emt 0:00:08]} bxc4 {[%emt 0:03:30]} 20. Bxc4 {[%emt 0:00:02]} f5 {[%emt 0:00:03]} 21. Bd3 {[%emt 0:01:01]} f4 {[%emt 0:00:04]} 22. Kc2 {[%emt 0:01:28]} Ke7 {[%emt 0:00:57]} 23. b3 {[%emt 0:00:29]} Reb8 {[%emt 0:00:10]} 24. Rb1 {[%emt 0:00:41]} Rb6 {[%emt 0:02:23]} 25. Bc4 {[%emt 0:02:04]} Bb5 {[%emt 0:02:03]} 26. a3 {[%emt 0:08:48]} Rab8 {[%emt 0:01:33]} 27. Kd3 {[%emt 0:00:42]} Be5 {[%emt 0:01:11]} 28. Rhc1 {[%emt 0:01:20]} Bxc3 {[%emt 0:01:24]} 29. Kxc3 {[%emt 0:00:28]} Bxc4 {[%emt 0:00:03]} 30. Kxc4 {[%emt 0:00:02]} a5 {[%emt 0:00:04]} 31. Rc2 {[%emt 0:02:18]} Kf6 {[%emt 0:00:03]} 32. Rcb2 {[%emt 0:00:28]} Ke5 {[%emt 0:00:53]} 33. b4 {[%emt 0:01:24]} axb4 {[%emt 0:00:01]} 34. axb4 {[%emt 0:00:01]} Rxb4+ {[%emt 0:00:01]} 35. Rxb4 {[%emt 0:00:01]} Rxb4+ {[%emt 0:00:01]} 36. Rxb4 cxb4 37. Kxb4 {[%emt 0:00:14]} f6 {[%emt 0:00:13]} 38. Kb5 {[%emt 0:00:30]} f5 {[%emt 0:02:37]} 39. Kc6 {[%emt 0:00:35]} fxe4 {[%emt 0:00:03]} 40. fxe4 {[%emt 0:00:01]} g5 {[%emt 0:00:01]} 41. hxg5 {[%emt 0:00:17]} h4 {[%emt 0:00:01]} 42. g6 {[%emt 0:00:06]} Kf6 {[%emt 0:00:07]} 43. e5+ {[%emt 0:00:10]} Kxg6 {[%emt 0:01:30]} 44. e6 $18 {[%emt 0:00:26]} Kf6 {[%emt 0:00:40]} 45. Kxd6 {[%emt 0:00:29]} f3 {[%emt 0:01:17]} 46. gxf3 {[%emt 0:00:01]} h3 {[%emt 0:00:06]} 47. e7 {[%emt 0:00:00]} h2 {[%emt 0:00:03]} 48. e8=Q {[%emt 0:00:03]} h1=Q {[%emt 0:00:02]} 49. Qe5+ {[%emt 0:00:26]} Kg6 {[%emt 0:00:39]} 50. Qe4+ {[%emt 0:00:09]} Kg7 {[%emt 0:00:13]} 51. Kd7 {[%emt 0:00:37]} Qh3+ {[%emt 0:00:21]} 52. Qg4+ {[%emt 0:00:04]} 1-0

[Event "15th Deltalift Open 2018"]
[Site "Halmstad"]
[Date "2018.05.10"]
[Round "4"]
[White "Hobber, Anders"]
[Black "Sjodahl, Pontus"]
[Result "0-1"]
[ECO "A45"]
[WhiteElo "2320"]
[BlackElo "2404"]
[Annotator "RC"]
[PlyCount "86"]
[EventDate "2018.??.??"]
[EventType "swiss"]
[EventCountry "SWE"]
[SourceTitle "playchess.com"]
[Source "ChessBase"]
[SourceQuality "1"]
[TimeControl "1800+12"]

1. d4 {[%emt 0:00:00]} Nf6 {[%emt 0:00:04]} 2. Bf4 {[%emt 0:00:00]} d5 {[%emt 0:00:09]} 3. e3 {[%emt 0:00:08]} c5 {[%emt 0:00:12]} 4. c3 {[%emt 0:00:12]} Nc6 {[%emt 0:00:35]} 5. Nd2 {[%emt 0:00:05]} cxd4 {[%emt 0:01:31]} 6. exd4 {[%emt 0:00:05]} e6 {[%emt 0:00:02]} 7. Bd3 {[%emt 0:00:43]} Bd7 {[%emt 0:01:15]} 8. h3 {[%emt 0:00:54]} Be7 {[%emt 0:01:14]} 9. Ngf3 {[%emt 0:00:04]} Rc8 {[%emt 0:01:22]} 10. O-O {[%emt 0:00:08]} O-O {[%emt 0:00:38]} 11. Re1 {[%emt 0:01:00]} a6 {[%emt 0:00:22]} 12. a4 {[%emt 0:00:07]} Be8 {[%emt 0:04:09]} 13. Qe2 {[%emt 0:00:28]} Nh5 {[%emt 0:02:33]} 14. Bh2 {[%emt 0:00:10]} g6 {[%emt 0:00:09]} 15. Ne5 {[%emt 0:01:44]} Ng7 {[%emt 0:01:33]} 16. Bf4 {[%emt 0:00:40]} g5 {[%emt 0:01:00]} 17. Be3 {[%emt 0:00:48]} f6 {[%emt 0:00:23]} 18. Nxc6 {[%emt 0:00:17]} Rxc6 {[%emt 0:00:11]} 19. f4 {[%emt 0:00:09]} gxf4 {[%emt 0:03:09]} 20. Bxf4 {[%emt 0:00:04]} Bh5 {[%emt 0:00:46]} 21. Qe3 {[%emt 0:00:36]} Kh8 {[%emt 0:00:18]} 22. Rf1 {[%emt 0:02:34]} Qe8 {[%emt 0:00:48]} 23. Bh6 {[%emt 0:02:55]} Rg8 {[%emt 0:00:38]} 24. c4 {[%emt 0:01:26]} dxc4 {[%emt 0:00:49]} 25. Bxc4 {[%emt 0:00:16]} Bd8 {[%emt 0:02:32]} 26. Rae1 {[%emt 0:05:36]} Qd7 {[%emt 0:02:39]} 27. Kh1 {[%emt 0:02:21]} Bf7 {[%emt 0:00:40]} 28. Bxg7+ {[%emt 0:00:26]} Rxg7 {[%emt 0:00:07]} 29. b3 {[%emt 0:01:15]} Rd6 {[%emt 0:01:34]} 30. Ne4 {[%emt 0:00:20]} Rxd4 {[%emt 0:00:13]} 31. Nxf6 {[%emt 0:00:35]} Qd6 {[%emt 0:00:53]} 32. Ne4 {[%emt 0:04:14]} Qe5 {[%emt 0:00:03]} 33. Rd1 {[%emt 0:02:22]} Bc7 {[%emt 0:00:31]} 34. Qg1 {[%emt 0:02:05]} Rxd1 {[%emt 0:00:56]} 35. Rxd1 {[%emt 0:00:05]} Qxe4 {[%emt 0:00:03]} 36. Qf2 {[%emt 0:00:28]} Qe5 {[%emt 0:00:18]} 37. g4 {[%emt 0:00:10]} h5 {[%emt 0:01:33]} 38. Rd7 {[%emt 0:00:25]} Bg8 {[%emt 0:00:30]} 39. Rxg7 {[%emt 0:00:31]} Kxg7 {[%emt 0:00:02]} 40. gxh5 {[%emt 0:00:07]} Bh7 {[%emt 0:00:30]} 41. h6+ {[%emt 0:00:13]} Kg8 {[%emt 0:00:26]} 42. Qg2+ {[%emt 0:00:51]} Kf7 {[%emt 0:00:03]} 43. Qf2+ {[%emt 0:00:23]} Qf4 {[%emt 0:00:09]} 0-1

[Event "15th Deltalift Open 2018"]
[Site "Halmstad"]
[Date "2018.05.10"]
[Round "4"]
[White "Johansson, Mikael"]
[Black "Linusson, Pelle"]
[Result "0-1"]
[ECO "D78"]
[WhiteElo "2284"]
[BlackElo "2211"]
[Annotator "NA"]
[PlyCount "64"]
[EventDate "2018.??.??"]
[EventType "swiss"]
[EventCountry "SWE"]
[SourceTitle "playchess.com"]
[Source "ChessBase"]
[SourceQuality "1"]
[TimeControl "1800+12"]

1. d4 {[%emt 0:00:00]} Nf6 {[%emt 0:00:04]} 2. c4 {[%emt 0:00:00]} g6 {[%emt 0:00:03]} 3. Nf3 {[%emt 0:00:00]} Bg7 {[%emt 0:00:10]} 4. g3 {[%emt 0:00:08]} c6 {[%emt 0:00:09] LiveBook: 1133 Games} 5. Bg2 {[%emt 0:00:04]} d5 {[%emt 0:00:03]} 6. O-O {[%emt 0:00:16]} O-O {[%emt 0:00:15]} 7. Nc3 {[%emt 0:00:11]} dxc4 {[%emt 0:00:43]} 8. e4 {[%emt 0:03:20]} b5 {[%emt 0:02:59]} 9. e5 {[%emt 0:00:13] D78: Fianchetto Grünfeld: 6 0-0 c6} (9. Qe2 b4 10. Nd1 a5 11. Re1 Ba6 12. Qc2 c5 13. e5 Nd5 14. Ne3 cxd4 15. Nxd4 Bb7 16. f4 Nc6 17. Qxc4 Nxd4 18. Qxd4 Nxe3 19. Bxe3 Bxg2 20. Kxg2 Qxd4 21. Bxd4 Rfd8 22. Rad1 {½-½ (22) Vinchev,S (2502)-Kuiper,J (2490) ICCF email 2016}) 9... Nd5 {[%emt 0:00:08]} 10. Ne4 {[%emt 0:00:37]} Bf5 {[%emt 0:04:16]} 11. Nh4 $146 {[%emt 0:00:15]} ({Predecessor:} 11. Qe2 Qb6 12. Rd1 Na6 13. Nh4 Bd7 14. a4 Rad8 15. axb5 cxb5 16. Nc5 Bc8 {½-½ (36) Van Gool,H (2161)-Rendboe,J (2274) Maastricht 2010}) 11... Bxe4 {[%emt 0:02:10]} 12. Bxe4 {[%emt 0:00:09]} e6 {[%emt 0:00:03]} 13. Be3 {[%emt 0:01:42]} Nd7 {[%emt 0:00:30]} 14. a4 {[%emt 0:00:56]} a5 {[%emt 0:00:19]} (14... a6 $17 15. Qd2 Qe7) 15. Bxd5 {[%emt 0:01:01]} exd5 {[%emt 0:00:40]} 16. f4 {[%emt 0:00:28]} b4 {[%emt 0:03:02]} 17. f5 {[%emt 0:00:17]} Re8 {[%emt 0:05:51]} 18. Qf3 {[%emt 0:02:47]} ({Don't play} 18. fxg6 fxg6 19. Qf3 Qe7 $17) 18... Qe7 {[%emt 0:09:53]} 19. Rae1 {[%emt 0:02:12] [#]} Nxe5 $1 {[%emt 0:02:13]} 20. dxe5 {[%emt 0:00:27]} Bxe5 {[%emt 0:00:15]} 21. Ng2 {[%emt 0:00:57]} Bxb2 {[%emt 0:00:22]} 22. Kh1 {[%emt 0:00:43]} (22. Qf2 {was necessary.} Bh8 23. f6) 22... Qd7 {[%emt 0:00:14]} 23. f6 {[%emt 0:01:04]} Re6 {[%emt 0:00:02]} 24. Qg4 {[%emt 0:00:12]} Qd6 {[%emt 0:00:05]} 25. Bd4 {[%emt 0:02:24]} Bxd4 {[%emt 0:00:04]} 26. Qxd4 {[%emt 0:00:02]} Rae8 {[%emt 0:00:09]} 27. g4 {[%emt 0:00:34]} c5 {[%emt 0:00:07]} 28. Rxe6 {[%emt 0:00:21]} Rxe6 {[%emt 0:00:05]} 29. Qf2 {[%emt 0:00:04]} h6 {[%emt 0:00:05]} 30. Nf4 {[%emt 0:00:05]} Rxf6 {[%emt 0:00:09]} 31. Qe3 {[%emt 0:00:11]} g5 {[%emt 0:00:12]} 32. Qe8+ {[%emt 0:00:07]} Kh7 {[%emt 0:00:04]} 0-1

[Event "15th Deltalift Open 2018"]
[Site "Halmstad"]
[Date "2018.05.10"]
[Round "4"]
[White "Kucuksari, Kaan"]
[Black "Akesson, Ralf"]
[Result "1-0"]
[ECO "D75"]
[WhiteElo "2264"]
[BlackElo "2392"]
[Annotator "RC"]
[PlyCount "159"]
[EventDate "2018.??.??"]
[EventType "swiss"]
[EventCountry "SWE"]
[SourceTitle "playchess.com"]
[Source "ChessBase"]
[SourceQuality "1"]
[TimeControl "1800+12"]

1. d4 {[%emt 0:00:00]} Nf6 {[%emt 0:00:08]} 2. Nf3 {[%emt 0:00:00]} g6 {[%emt 0:00:33]} 3. c4 {[%emt 0:00:00]} Bg7 {[%emt 0:00:03]} 4. Nc3 {[%emt 0:00:00]} d5 {[%emt 0:00:02]} 5. cxd5 {[%emt 0:00:00]} Nxd5 {[%emt 0:00:02]} 6. g3 {[%emt 0:00:00]} O-O {[%emt 0:00:50]} 7. Bg2 {[%emt 0:00:00]} c5 {[%emt 0:00:31]} 8. O-O {[%emt 0:00:12]} Nxc3 {[%emt 0:01:35]} 9. bxc3 {[%emt 0:00:02]} Nc6 {[%emt 0:00:07]} 10. d5 {[%emt 0:00:16]} Na5 {[%emt 0:00:13]} 11. Bf4 {[%emt 0:00:12]} Bf5 {[%emt 0:01:22]} 12. Qa4 {[%emt 0:11:18]} Bd7 {[%emt 0:04:17]} 13. Qc2 {[%emt 0:00:27]} Nc4 {[%emt 0:00:54]} 14. Nd2 {[%emt 0:01:50]} Nxd2 {[%emt 0:00:55]} 15. Qxd2 {[%emt 0:02:57]} Qa5 {[%emt 0:00:36]} 16. Rfc1 {[%emt 0:01:13]} Rac8 {[%emt 0:02:35]} 17. d6 {[%emt 0:02:32]} e5 {[%emt 0:02:32]} 18. Bg5 {[%emt 0:00:22]} f6 {[%emt 0:00:18]} 19. Be3 {[%emt 0:02:40]} b6 {[%emt 0:00:15]} 20. Bb7 {[%emt 0:01:56]} Rcd8 {[%emt 0:00:22]} 21. Qd5+ {[%emt 0:00:14]} Kh8 {[%emt 0:00:29]} 22. a4 {[%emt 0:01:59]} Be8 {[%emt 0:01:12]} 23. c4 {[%emt 0:01:17]} Bf7 {[%emt 0:01:59]} 24. Qd1 {[%emt 0:02:00]} Qb4 {[%emt 0:01:21]} 25. Bd2 {[%emt 0:01:36]} Rxd6 {[%emt 0:00:22]} 26. Bxb4 {[%emt 0:00:36]} Rxd1+ {[%emt 0:00:02]} 27. Rxd1 {[%emt 0:00:15]} cxb4 {[%emt 0:00:02]} 28. Bd5 {[%emt 0:01:25]} Bxd5 {[%emt 0:01:44]} 29. cxd5 {[%emt 0:00:13]} Rd8 {[%emt 0:00:04]} 30. a5 {[%emt 0:00:07]} Bf8 {[%emt 0:00:10]} 31. axb6 {[%emt 0:00:01]} axb6 {[%emt 0:00:02]} 32. Ra6 {[%emt 0:00:18]} Bc5 {[%emt 0:00:04]} 33. e4 {[%emt 0:00:19]} Rd7 {[%emt 0:00:19]} 34. Ra8+ {[%emt 0:00:15]} Kg7 {[%emt 0:00:02]} 35. Kg2 {[%emt 0:00:08]} f5 {[%emt 0:00:09]} 36. exf5 {[%emt 0:00:16]} gxf5 {[%emt 0:00:03]} 37. Re8 {[%emt 0:00:08]} e4 {[%emt 0:00:48]} 38. g4 {[%emt 0:00:13]} fxg4 {[%emt 0:00:23]} 39. Rxe4 {[%emt 0:00:03]} h5 {[%emt 0:00:02]} 40. f3 {[%emt 0:00:13]} gxf3+ {[%emt 0:00:28]} 41. Kxf3 {[%emt 0:00:01]} Kf6 {[%emt 0:00:29]} 42. Re6+ {[%emt 0:00:29]} Kf5 {[%emt 0:00:06]} 43. Rh6 {[%emt 0:00:10]} Kg5 {[%emt 0:00:21]} 44. Re6 {[%emt 0:00:12]} Kf5 {[%emt 0:00:03]} 45. Rh6 {[%emt 0:00:02]} Kg5 {[%emt 0:00:02]} 46. Rc6 {[%emt 0:00:22]} Kf5 {[%emt 0:00:12]} 47. Rd3 {[%emt 0:00:15]} Rf7 {[%emt 0:00:31]} 48. Re6 Rd7 {[%emt 0:00:19]} 49. Re4 {[%emt 0:00:23]} Kf6 {[%emt 0:00:36]} 50. Re6+ {[%emt 0:00:12]} Kf5 {[%emt 0:00:01]} 51. Re4 {[%emt 0:00:00]} Kf6 {[%emt 0:00:02]} 52. Ke2 {[%emt 0:00:20]} Kf5 {[%emt 0:00:35]} 53. Re6 {[%emt 0:00:04]} Rxd5 {[%emt 0:00:53]} 54. Rxd5+ {[%emt 0:00:01]} Kxe6 {[%emt 0:00:02]} 55. Rxh5 {[%emt 0:00:01]} b3 {[%emt 0:00:55]} 56. Kd3 {[%emt 0:00:52]} b2 {[%emt 0:00:09]} 57. Kc2 {[%emt 0:00:01]} Bd4 {[%emt 0:00:02]} 58. Rb5 {[%emt 0:00:05]} Kd6 {[%emt 0:00:44]} 59. Kd3 {[%emt 0:00:07]} Kc6 {[%emt 0:00:16]} 60. Kc4 {[%emt 0:00:14]} Bf6 {[%emt 0:00:36]} 61. Rb3 {[%emt 0:00:17]} Bg7 {[%emt 0:01:49]} 62. Rb4 {[%emt 0:00:18]} Bf6 {[%emt 0:00:08]} 63. Rb5 {[%emt 0:00:01]} Be5 {[%emt 0:00:38]} 64. h3 {[%emt 0:00:15]} Bf6 {[%emt 0:00:10]} 65. Rb4 {[%emt 0:00:01]} Be5 {[%emt 0:00:12]} 66. Rb3 {[%emt 0:00:01]} Bf6 {[%emt 0:00:03]} 67. Rb5 {[%emt 0:00:01]} Be5 {[%emt 0:00:18]} 68. Rb4 {[%emt 0:00:05]} Bf6 {[%emt 0:00:02]} 69. Rb3 {[%emt 0:00:01]} Be5 {[%emt 0:00:04]} 70. h4 {[%emt 0:00:12]} Bf6 {[%emt 0:00:01]} 71. h5 {[%emt 0:00:01]} Bg7 {[%emt 0:00:05]} 72. Rb5 {[%emt 0:01:30]} Bh8 {[%emt 0:01:19]} 73. Rb3 {[%emt 0:00:09]} Bg7 {[%emt 0:00:02]} 74. Rb4 {[%emt 0:00:12]} Bh8 {[%emt 0:00:14]} 75. Kd3 {[%emt 0:00:12]} Kc5 {[%emt 0:00:25]} 76. Rb3 {[%emt 0:00:06]} Bd4 {[%emt 0:01:03]} 77. Kc2 {[%emt 0:00:22]} Bh8 {[%emt 0:02:17]} 78. h6 {[%emt 0:00:09]} Kd5 {[%emt 0:00:10]} 79. Rxb6 {[%emt 0:00:11]} Ke5 {[%emt 0:00:07]} 80. Rb8 {[%emt 0:00:07]} 1-0